Workbook

Sheet macro

Sheet הזנת נתונים (hidden)
A2: נא להזין תאריכים | F2: נא להזין סכומים להיוון
A3: תאריך תחילת עבודה | B3: 1985-01-01 | F3: יש להזין חיסכון למטרת קצבה שהלקוח מעוניין להוון בפרישה, במידה וישנם בתוכנית תגמולים ופיצויים חובה לפחות יחס של 1.2 תגמולים ל-1 פיצויים.
A4: תאריך סיום עבודה | B4: 2020-12-31
A7: נתוני הכנסות ותשלומי מס בשנת הפרישה | F7: סכומי חיסכון למטרת קצבה שהלקוח מעוניין להוון | G7: 45678
A8: הכנסות מעבודה בשנת הפרישה | B8: 254000
A9: מס ששולם בשנת הפרישה | B9: 60000
A10: נקודות זיכוי | B10: 2.25
A12: נא להזין סכומי פיצויים פטורים שנפדו או קיבלו אישור פטור | F12: נא להזין סכומי פיצויים לפדיון בלבד
A13: יש להזין סכומי פיצויים שנפדו בפטור לאורך שנות העבודה. להזין סכום שנמשך בפועל, ובתאריך חודש ושנת הפדיון בלבד! פיצויים שנפדו בפטור גבר לפני גיל 52, אישה לפני גיל 47 ולפני 2012 אין להזין מכיוון שאינם מקזזים מהטבות המס | F13: מענק השלמת פיצויים | G13: 100
F14: מענק ימי מחלה | G14: 750000
A15: סכום הפיצויים | B15: תאריך משיכה - חודש ושנה בלבד | F15: מענק הסתגלות | G15: 0
A16: 10000 | B16: 1972-12-01 | F16: מענק דמי שתיקה | G16: 176000
A17: 20000 | B17: 2010-11-01 | F17: מענק אי תחרות | G17: 500
A18: 15789 | B18: 2020-12-01 | F18: פיצויים למשיכה מתוכניות פנסיוניות | G18: 600
F19: סה"כ פיצויים לפדיון במזומן | G19: =SUM(G13:G18) -> 927200
F22: נא להזין סכומי קצבה
F23: סך הקצבה המזכה החודשית הצפויה | G23: 10000
F24: סך הקצבה המוכרת החודשית הצפויה | G24: 2156
F25: מזכה - חייבת במס, מוכרת -פטורה ממס

Sheet חישוב פטור בגיל פרישה (hidden)
I4: תאריך | J4: =NOW() -> 2021-04-05T15:26:12.610 | L4: התפתחות הפטור | M4: מקסימום | N4: מינימום | Q4: 1
A5: תקופת עבודה לחישוב פטור | B5: ='תקופות עבודה רצפים'!E23 -> 36.02191781 | C5: =IF(B5>32,"הגדלת פטור","מצב קיים") -> הגדלת פטור | D5: חודש הפרישה | E5: =IF(DAY(J18)>10,MONTH(J18)+1,MONTH(J18)) -> 13 | I5: תקרה מזכה | J5: ='נתונים ותקרות'!B4 -> 8460 | L5: 2017 | M5: 0.49 | N5: 0.14 | Q5: 2
A6: פטור לכל שנת עבודה בהתאם לפקודת מס הכנסה | B6: =J8 -> 12340 | I6: פטור מינמילי | J6: =J5*J10 -> 1438.2 | L6: 2020 | M6: 0.52 | N6: 0.17 | Q6: 3
A7: סה"כ פיצויים פטורים בהתאם לפקודה | B7: =B5*B6 -> 444510.4658 | I7: אפס | J7: 0 | L7: 2025 | M7: 0.67 | N7: 0.32 | Q7: 4
I8: פטור פיצויים לכל שנת עבודה | J8: ='נתונים ותקרות'!B5 -> 12340 | Q8: 5
A9: התחשבנות פיצויים | I9: אחוז פטור | J9: =IF(YEAR(J18)<L6,M5,IF(YEAR(J18)<L7,M6,M7)) -> 0.52 | Q9: 6
A10: משיכת פיצויים בעבר | B10: ='חישוב פיצויים שנמשכו ב-32 ש"ע'!G20 -> 37156.75855 | D10: פריסת מס בגין פיצויים | I10: אחוז פטור מינימלי | J10: =IF(YEAR(J18)<L6,N5,IF(YEAR(J18)<L7,N6,N7)) -> 0.17 | Q10: 7
A11: מענקי פיצויים מעסיק נוכחי | B11: ='מענקי פיצויים'!C32 -> 927200 | D11: סכום לפריסה -פיצויים חייבים | E11: =B19 -> 482689.5342 | Q11: 8
A12: סה"כ פיצויים להתחשבנות | B12: =SUM(B10:B11) -> 964356.7586 | D12: שנות פריסה | E12: =J14 -> 6 | I12: =A5 -> תקופת עבודה לחישוב פטור | J12: =B5 -> 36.02191781 | Q12: 9
A13: סה"כ פיצויים להפחתה מהפטור | B13: =IF(B12>B7,B7+B10,B12) -> 481667.2243 | D13: =IF(MONTH(J18)>=10,YEAR(J18)+1,YEAR(J18)) -> 2021 | E13: =IF(E12>=1,E11/E12,0) -> 80448.25571 | I13: עיגול תקופה | J13: =MROUND(J12,4) -> 36 | Q13: 10
D14: =D13+1 -> 2022 | E14: =IF(E12>=2,E11/E12,0) -> 80448.25571 | I14: שנות פריסה | J14: =IF(J13>24,6,J13/4) -> 6 | Q14: 11
A15: סה"כ ההון הפטור בהתאם לפקודה | B15: =J5*J9*180 -> 791856 | D15: =D14+1 -> 2023 | E15: =IF(E12>=3,E11/E12,0) -> 80448.25571 | Q15: 12
A16: שווי משיכות פיצויים להפחתה מהפטור | B16: =IF(C5="מצב קיים",(B13)*1.35,(B13)*1.35*32/B5) -> 577648.9803 | D16: 2024 | E16: =IF(E12>=4,E11/E12,0) -> 80448.25571
A17: יתרת ההון הפטור לאחר הפחתת פיצויים | B17: =IF((B15-B16)>J6*180,B15-B16,J6*180) -> 258876 | D17: 2025 | E17: =IF(E12>=5,E11/E12,0) -> 80448.25571 | I17: הכנסות בשנת הפרישה
D18: 2026 | E18: =IF(E12=6,E11/E12,0) -> 80448.25571 | I18: תאריך הפרישה | J18: ='חישוב פיצויים שנמשכו ב-32 ש"ע'!D2 -> 2020-12-31
A19: פיצויים חייבים במס | B19: =IF(B11>B7,B11-B7,0) -> 482689.5342 | I19: הכנסות מעבודה | J19: ='הזנת נתונים'!B8 -> 254000
I20: מס ששולם | J20: ='הזנת נתונים'!B9 -> 60000
A21: היוון קיצבה | I21: נקודות זיכוי ללקוח | J21: ='הזנת נתונים'!B10 -> 2.25
A22: סה"כ קיצבה להיוון | B22: ='היוון קיצבה'!E20 -> 45678
A23: סה"כ הייון פטור | B23: =IF(B22>B17,B17,B22) -> 45678
A24: סה"כ היוון חייב | B24: =B22-B23 -> 0 | D24: פריסת מס בגין היוו קיצבה
A25: יתרת ההון הפטור לאחר הפחתת פיצויים והיוון קיצבה | B25: =IF((B17-B22)<0,0,B17-B22) -> 213198 | D25: סכום לפריסה - היוון קיצבה | E25: =IF((B17-B22)<0,(B17-B22)*-1,0) -> 0
D26: שנות פריסה | E26: =IF(E25=0,0,6) -> 0
A27: המרת הפטור על הקיצבה | B27: =IF((IF((B17/180)>J6,B17/180,J6)-B22/180)>0,(B17-B22)/180,0) -> 1184.433333 | D27: =IF(MONTH(J18)>=10,YEAR(J18)+1,YEAR(J18)) -> 2021 | E27: =($E$25/6) -> 0
B28: בשנים לאחר שנת הפרישה | C28: בשנת הפרישה | D28: =D27+1 -> 2022 | E28: =($E$25/6) -> 0
A29: סה"כ קיצבה מזכה | B29: ='חישובי קיצבה '!H16 -> 10000 | C29: =B29 -> 10000 | D29: =D28+1 -> 2023 | E29: 0
A30: מס על הקיצבה | B30: ='מס על הקיצבה'!E25 -> 492.0793333 | C30: =IF(C29=0,0,IF(('מס על הקיצבה 2'!E25*12-'חישוב פטור בגיל פרישה'!J20)/12>0,('מס על הקיצבה 2'!E25*12-'חישוב פטור בגיל פרישה'!J20)/(13-E5),0)) -> 0 | D30: 2024 | E30: 0
A31: קיצבה נטו | B31: =B29-B30 -> 9507.920667 | C31: =C29-C30 -> 10000 | D31: 2025 | E31: 0
A32: סה"כ קיצבה מוכרת | B32: ='חישובי קיצבה '!H33 -> 2156 | C32: ='חישובי קיצבה '!H33 -> 2156 | D32: 2026 | E32: 0
A33: קיצבה כוללת נטו | B33: =B31+B32 -> 11663.92067 | C33: =C31+C32 -> 12156
A35: סה"כ מענק פיצויים | B35: =B12-B10 -> 927200
A36: מס על מענק הפיצויים | B36: =IF(B11<=B7,0,('מס על הקיצבה'!E9-'מס על הקיצבה'!E8)*12*(('חישוב פטור בגיל פרישה'!E12-1))+('מס על הקיצבה 2'!E9-'מס על הקיצבה 2'!E8)*12) -> 120514.4658
A37: מענק פיצויים נטו | B37: =B35-B36 -> 806685.5342
A39: סה"כ מענק בגין היוון | B39: =B22 -> 45678
A40: מס על ההיוון | B40: =IF(B27>0,0,('מס על הקיצבה'!E10-'מס על הקיצבה'!E9)*12*(E26-1))+('מס על הקיצבה 2'!E10-'מס על הקיצבה 2'!E9)*12 -> 0
A41: מענק בגין היוון נטו | B41: =B39-B40 -> 45678

Sheet נתונים ותקרות (hidden)
A3: מדד התחשבנות | B3: 12389
A4: תקרה מזכה | B4: 8460
A5: פטור פיצויים לכל שנת עבודה | B5: 12340
A6: שווי נקודת זיכוי | B6: 218
A16: שיעור מס | B16: הכנסה חודשית
A17: 0.1 | B17: 0
A18: 0.14 | B18: 6290
A19: 0.2 | B19: 9030
A20: 0.31 | B20: 14490
A21: 0.35 | B21: 20140
A22: 0.47 | B22: 41910
A23: 0.5 | B23: 53970
B24: 1000000

Sheet חוב וותק פיצויים (hidden)
A3: מעסיק אחרון
A4: חישוב חוב וותק פיצויים
C6: תאריך סיום עבודה | D6: תאריך תחילת עבודה
A7: תקופת עבודה | B7: =(C7-D7)/365 -> 36.02191781 | C7: ='הזנת נתונים'!B4 -> 2020-12-31 | D7: ='הזנת נתונים'!B3 -> 1985-01-01
A8: שכר אחרון
A9: חוב וותק | B9: =B7*B8 -> 0
A13: פיצויים קיימים בתוכניות | B13: חברה מנהלת | C13: מספר פוליסה / קופה | D13: סכום
A14: 1
A15: 2
A16: 3
A17: 4
A18: 5
A19: 6
A20: 7
A21: 8
A22: 9
A23: 10
A24: סה"כ | D24: =SUM(D14:D23) -> 0
A26: חישוב יתרה להשלמה בהינתן ואין סעיף 14
A28: חוב וותק | B28: =B9 -> 0
A29: קיים בתוכניות | B29: =D24 -> 0
A30: יתרה להשלמה | B30: =B28-B29 -> 0

Sheet תקופות עבודה רצפים (hidden)
A4: מס"ד | B4: מעסיק | C4: תחילת עבודה | D4: סיום עבודה | E4: סה"כ תקופת עבודה | F4: רצף פיצויים | G4: רצף | H4: תקופת עבודה לחישוב הפטור
A5: 1 | B5: א | C5: ='חוב וותק פיצויים'!D7 -> 1985-01-01 | D5: ='חוב וותק פיצויים'!C7 -> 2020-12-31 | E5: =(D5-C5)/365 -> 36.02191781 | F5: מעסיק אחרון | G5: =AND(OR(F5="כן",F5=0,F5="מעסיק אחרון"),OR(F6="כן",F6=0,F6="מעסיק אחרון"),OR(F7="כן",F7=0,F7="מעסיק אחרון"),OR(F8="כן",F8=0,F8="מעסיק אחרון"),OR(F9="כן",F9=0,F9="מעסיק אחרון"),OR(F10="כן",F10=0,F10="מעסיק אחרון"),OR(F11="כן",F11=0,F11="מעסיק אחרון"),OR(F12="כן",F12=0,F12="מעסיק אחרון"),OR(F13="כן",F13=0,F13="מעסיק אחרון"),OR(F14="כן",F14=0,F14="מעסיק אחרון"),OR(F15="כן",F15=0,F15="מעסיק אחרון"),OR(F16="כן",F16=0,F16="מעסיק אחרון"),OR(F17="כן",F17=0,F17="מעסיק אחרון"),OR(F18="כן",F18=0,F18="מעסיק אחרון"),OR(F19="כן",F19=0,F19="מעסיק אחרון")) -> TRUE | H5: =IF(G5=TRUE,TRUE,FALSE) -> TRUE
A6: 2 | B6: ב | E6: =(D6-C6)/365 -> 0 | F6: 0 | G6: =AND(OR(F6="כן",F6=0,F6="מעסיק אחרון"),OR(F7="כן",F7=0,F7="מעסיק אחרון"),OR(F8="כן",F8=0,F8="מעסיק אחרון"),OR(F9="כן",F9=0,F9="מעסיק אחרון"),OR(F10="כן",F10=0,F10="מעסיק אחרון"),OR(F11="כן",F11=0,F11="מעסיק אחרון"),OR(F12="כן",F12=0,F12="מעסיק אחרון"),OR(F13="כן",F13=0,F13="מעסיק אחרון"),OR(F14="כן",F14=0,F14="מעסיק אחרון"),OR(F15="כן",F15=0,F15="מעסיק אחרון"),OR(F16="כן",F16=0,F16="מעסיק אחרון"),OR(F17="כן",F17=0,F17="מעסיק אחרון"),OR(F18="כן",F18=0,F18="מעסיק אחרון"),OR(F19="כן",F19=0,F19="מעסיק אחרון"),OR(F20="כן",F20=0,F20="מעסיק אחרון")) -> TRUE | H6: =IF(G6=TRUE,TRUE,FALSE) -> TRUE | M6: כן
A7: 3 | B7: ג | E7: =(D7-C7)/365 -> 0 | F7: 0 | G7: TRUE | H7: TRUE | M7: לא
A8: 4 | B8: ד | E8: 0 | F8: 0 | G8: TRUE | H8: TRUE | M8: מעסיק אחרון
A9: 5 | B9: ה | E9: 0 | F9: 0 | G9: TRUE | H9: TRUE | M9: 0
A10: 6 | B10: ו | F10: 0 | G10: TRUE | H10: TRUE
A11: 7 | B11: ז | F11: 0 | G11: TRUE | H11: TRUE
A12: 8 | B12: ח | F12: 0 | G12: TRUE | H12: TRUE
A13: 9 | B13: ט | F13: 0 | G13: TRUE | H13: TRUE
A14: 10 | B14: י | F14: 0 | G14: TRUE | H14: TRUE
A15: 11 | B15: יא | F15: 0 | G15: TRUE | H15: TRUE
A16: 12 | B16: יב | F16: 0 | G16: TRUE | H16: TRUE
A17: 13 | B17: יג | F17: 0 | G17: TRUE | H17: TRUE
A18: 14 | B18: יד | F18: 0 | G18: TRUE | H18: TRUE
A19: 15 | B19: טו | F19: 0 | G19: TRUE | H19: TRUE
A23: סה" תקופת עבודה לחישוב פטור | E23: =SUMIF(H5:H19,"true",$E$5:$E$19) -> 36.02191781

Sheet חישוב פיצויים שנמשכו ב-32 ש"ע (hidden)
C2: תאריך הפרישה | D2: ='חוב וותק פיצויים'!C7 -> 2020-12-31 | F2: מדד התחשבנות | G2: ='נתונים ותקרות'!B3 -> 12389
A4: מס"ד | B4: מעסיק | C4: סכום הפיצויים | D4: תאריך משיכה - חודש ושנה בלבד | E4: מדד משיכה | F4: מדד התחשבנות | G4: שווי נכון ליום ההתחשבנות | J4: מבצע בדיקת 32 שנות עבודה
A5: 1 | B5: ='תקופות עבודה רצפים'!B5 -> א | C5: ='הזנת נתונים'!A16 -> 10000 | D5: ='הזנת נתונים'!B16 -> 1972-12-01 | E5: =IF(C5>0,VLOOKUP(D5,'מדד המחירים לצרכן ומדד הביטוח'!D5:E1000,2,FALSE),0) -> 230.61 | F5: =$G$2 -> 12389 | G5: =IF((YEAR($D$2)-YEAR(D5))<=32,C5*$G$2/E5,0) -> 0
A6: 2 | B6: ='תקופות עבודה רצפים'!B6 -> ב | C6: ='הזנת נתונים'!A17 -> 20000 | D6: ='הזנת נתונים'!B17 -> 2010-11-01 | E6: =IF(C6>0,VLOOKUP(D6,'מדד המחירים לצרכן ומדד הביטוח'!D6:E1001,2,FALSE),0) -> 11621 | F6: =$G$2 -> 12389 | G6: =IF((YEAR($D$2)-YEAR(D6))<=32,C6*$G$2/E6,0) -> 21321.74512
A7: 3 | B7: ='תקופות עבודה רצפים'!B7 -> ג | C7: ='הזנת נתונים'!A18 -> 15789 | D7: ='הזנת נתונים'!B18 -> 2020-12-01 | E7: =IF(C7>0,VLOOKUP(D7,'מדד המחירים לצרכן ומדד הביטוח'!D7:E1002,2,FALSE),0) -> 12353 | F7: 12389 | G7: 15835.01344
A8: 4 | B8: ='תקופות עבודה רצפים'!B8 -> ד | C8: ='הזנת נתונים'!A19 -> 0 | D8: ='הזנת נתונים'!B19 -> 00:00:00 | E8: =IF(C8>0,VLOOKUP(D8,'מדד המחירים לצרכן ומדד הביטוח'!D8:E1003,2,FALSE),0) -> 0 | F8: 12389 | G8: 0
A9: 5 | B9: ='תקופות עבודה רצפים'!B9 -> ה | C9: ='הזנת נתונים'!A20 -> 0 | D9: ='הזנת נתונים'!B20 -> 00:00:00 | E9: =IF(C9>0,VLOOKUP(D9,'מדד המחירים לצרכן ומדד הביטוח'!D9:E1004,2,FALSE),0) -> 0 | F9: 12389 | G9: 0
A10: 6 | B10: ='תקופות עבודה רצפים'!B10 -> ו | C10: ='הזנת נתונים'!A21 -> 0 | D10: ='הזנת נתונים'!B21 -> 00:00:00 | E10: =IF(C10>0,VLOOKUP(D10,'מדד המחירים לצרכן ומדד הביטוח'!D10:E1005,2,FALSE),0) -> 0 | F10: 12389 | G10: 0
A11: 7 | B11: ='תקופות עבודה רצפים'!B11 -> ז | C11: ='הזנת נתונים'!A22 -> 0 | D11: ='הזנת נתונים'!B22 -> 00:00:00 | E11: =IF(C11>0,VLOOKUP(D11,'מדד המחירים לצרכן ומדד הביטוח'!D11:E1006,2,FALSE),0) -> 0 | F11: 12389 | G11: 0
A12: 8 | B12: ='תקופות עבודה רצפים'!B12 -> ח | C12: ='הזנת נתונים'!A23 -> 0 | D12: ='הזנת נתונים'!B23 -> 00:00:00 | E12: =IF(C12>0,VLOOKUP(D12,'מדד המחירים לצרכן ומדד הביטוח'!D12:E1007,2,FALSE),0) -> 0 | F12: 12389 | G12: 0 | K12: חהעלים את הNULL
A13: 9 | B13: ='תקופות עבודה רצפים'!B13 -> ט | C13: ='הזנת נתונים'!A24 -> 0 | D13: ='הזנת נתונים'!B24 -> 00:00:00 | E13: =IF(C13>0,VLOOKUP(D13,'מדד המחירים לצרכן ומדד הביטוח'!D13:E1008,2,FALSE),0) -> 0 | F13: 12389 | G13: 0
A14: 10 | B14: ='תקופות עבודה רצפים'!B14 -> י | C14: ='הזנת נתונים'!A25 -> 0 | D14: ='הזנת נתונים'!B25 -> 00:00:00 | E14: =IF(C14>0,VLOOKUP(D14,'מדד המחירים לצרכן ומדד הביטוח'!D14:E1009,2,FALSE),0) -> 0 | F14: 12389 | G14: 0
A15: 11 | B15: ='תקופות עבודה רצפים'!B15 -> יא | E15: =IF(C15>0,VLOOKUP(D15,'מדד המחירים לצרכן ומדד הביטוח'!D15:E1010,2,FALSE),0) -> 0 | F15: 12389 | G15: 0
A16: 12 | B16: ='תקופות עבודה רצפים'!B16 -> יב | E16: =IF(C16>0,VLOOKUP(D16,'מדד המחירים לצרכן ומדד הביטוח'!D16:E1011,2,FALSE),0) -> 0 | F16: 12389 | G16: 0
A17: 13 | B17: ='תקופות עבודה רצפים'!B17 -> יג | E17: =IF(C17>0,VLOOKUP(D17,'מדד המחירים לצרכן ומדד הביטוח'!D17:E1012,2,FALSE),0) -> 0 | F17: 12389 | G17: 0
A18: 14 | B18: ='תקופות עבודה רצפים'!B18 -> יד | E18: =IF(C18>0,VLOOKUP(D18,'מדד המחירים לצרכן ומדד הביטוח'!D18:E1013,2,FALSE),0) -> 0 | F18: 12389 | G18: 0
A19: 15 | B19: ='תקופות עבודה רצפים'!B19 -> טו | E19: =IF(C19>0,VLOOKUP(D19,'מדד המחירים לצרכן ומדד הביטוח'!D19:E1014,2,FALSE),0) -> 0 | F19: 12389 | G19: 0
D20: פיצויים להתחשבנות | G20: =SUM(G5:G19) -> 37156.75855

Sheet היוון קיצבה (hidden)
A2: היוון קיצבאות
A4: מס"ד | B4: מספר עמית | C4: חברה מנהלת | D4: סוג קופה | E4: סכום להיוון
A5: 1 | D5: קופת גמל | E5: ='הזנת נתונים'!G7 -> 45678 | H5: סוגי קופות
A6: 2 | H6: קופת גמל
A7: 3 | H7: ביטוח מנהלים
A8: 4 | H8: קרן פנסיה
A9: 5
A10: 6
A11: 7
A12: 8
A13: 9
A14: 10
A15: 11
A16: 12
A17: 13
A18: 14
A19: 15
E20: =SUM(E5:E19) -> 45678

Sheet מענקי פיצויים (hidden)
B2: תאריך הפרישה | C2: ='חישוב פיצויים שנמשכו ב-32 ש"ע'!D2 -> 2020-12-31
A4: מס"ד | B4: שם המשלם | C4: מספר תיק ניכויים | D4: קוד סוג המשלם | E4: קוד סוג התשלום | F4: סכום המענק | G4: האם נמשך במזומן | H4: מספר פוליסה | I4: רצף קיצבה | J4: רצף פיצויים | L4: =D4 -> קוד סוג המשלם
A5: 1 | B5: מגדל ביטוח | C5: 9356000359 | D5: 4 | E5: 20 | G5: כן | I5: לא | J5: לא | L5: המעביד | M5: 1
A6: 2 | B6: מנורה מבטחים פנסיה | C6: 9359689784 | D6: 6 | E6: 20 | G6: לא | I6: כן | J6: לא | L6: מינהל הגמלאות (פנסיה תקציבית של עובדי מדינה) | M6: 2
A7: 3 | L7: קופה מרכזית לפיצויים, כולל ביטוח לאומי במקרה של פשיטת רגל | M7: 3
A8: 4 | L8: קופה אישית לפיצויים כולל קופת ביטוח (הון) | M8: 4
A9: 5 | L9: קופת פנסיה וותיקה | M9: 5
A10: 6 | L10: קופת פנסיה חדשה כולל קופת ביטוח לקיצבה | M10: 6
A11: 7 | L11: קופה לקיצבת יסוד / קופה לתגמולים של עמית שכיר | M11: 7
A12: 8
A13: 9
A14: 10 | L14: =E4 -> קוד סוג התשלום
F15: =SUMIFS(F5:F14,G5:G14,"כן") -> 0 | L15: מענק רגיל | M15: 20
L16: מענק שנים עודפות | M16: 21
L17: מענק כוחות הביטחון | M17: 22
L18: מענק שארים | M18: 23
L19: קיצבה | M19: 30
L20: פנסיה תקציבית שתשולם בעתיד | M20: 31
L21: קיצבת שארים | M21: 32
L22: קיצבת יסוד / תגמולים של עמית שכיר | M22: 34
B23: חישוב פיצויים למשיכה במזומן
A25: 1 | B25: מענק השלמת פיצויים | C25: ='הזנת נתונים'!G13 -> 100 | L25: מזומן
A26: 2 | B26: מענק ימי מחלה | C26: ='הזנת נתונים'!G14 -> 750000 | L26: כן
A27: 3 | L27: לא
A28: 4 | B28: מענק הסתגלות | C28: ='הזנת נתונים'!G15 -> 0
A29: 5 | B29: מענק דמי שתיקה | C29: ='הזנת נתונים'!G16 -> 176000
A30: 6 | B30: מענק אי תחרות | C30: ='הזנת נתונים'!G17 -> 500
A31: 7 | B31: פיצויים למשיכה מתוכניות פנסיוניות | C31: ='הזנת נתונים'!G18 -> 600
A32: סה"כ מענקי פיצויים להתחשבנות | C32: =SUM(C25:C31) -> 927200
B33: סה"כ פיצויים | C33: =SUM(C25:C31) -> 927200

Sheet חישובי קיצבה (hidden)
B3: מקורות קיצבה מזכה
A5: מס"ד | B5: מספר פוליסה | C5: חברת ביטוח | D5: צבירת תגמולים לקיצבה | E5: צבירת פיצויים לקיצבה | F5: סה"כ | G5: מקדם | H5: סה"כ קיצבה
A6: 1 | B6: 123456 | C6: מגדל | D6: 2000000 | F6: 1500000 | G6: 200
A7: 2 | B7: 789005 | C7: כלל | F7: =E7+D7 -> 0 | G7: 137.7
A8: 3
A9: 4
A10: 5
A11: 6
A12: 7
A13: 8
A14: 9
A15: 10
A16: סה"כ קיצבה | H16: ='הזנת נתונים'!G23 -> 10000
B20: מקורות קיצבה מוכרת
A22: מס"ד | B22: מספר פוליסה | C22: חברת ביטוח | D22: צבירת תגמולים לקיצבה | E22: צבירת פיצויים לקיצבה | F22: סה"כ | G22: מקדם | H22: סה"כ קיצבה
A23: 1 | B23: 232323 | C23: מגדל | F23: =E23+D23 -> 0 | G23: 157.63 | H23: =F23/G23 -> 0
A24: 2 | B24: 565656 | C24: כלל | F24: =E24+D24 -> 0 | G24: 137.7 | H24: =F24/G24 -> 0
A25: 3
A26: 4
A27: 5
A28: 6
A29: 7
A30: 8
A31: 9
A32: 10
A33: סה"כ קיצבה | H33: ='הזנת נתונים'!G24 -> 2156

Sheet כדאיות כלכלית קיצבה מול פיצויים (hidden)
I4: תאריך | J4: =NOW() -> 2021-04-05T15:26:12.610 | L4: התפתחות הפטור | M4: מקסימום | N4: מינימום | Q4: 1
A5: תקופת עבודה לחישוב פטור | B5: ='תקופות עבודה רצפים'!E23 -> 36.02191781 | C5: =IF(B5>32,"הגדלת פטור","מצב קיים") -> הגדלת פטור | D5: חודש הפרישה | E5: =IF(DAY(J18)>10,MONTH(J18)+1,MONTH(J18)) -> 13 | I5: תקרה מזכה | J5: ='נתונים ותקרות'!B4 -> 8460 | L5: 2017 | M5: 0.49 | N5: 0.14 | Q5: 2
A6: פטור לכל שנת עבודה בהתאם לפקודת מס הכנסה | B6: =J8 -> 12340 | I6: פטור מינמילי | J6: =J5*J10 -> 1438.2 | L6: 2020 | M6: 0.52 | N6: 0.17 | Q6: 3
A7: סה"כ פיצויים פטורים בהתאם לפקודה | B7: =B5*B6 -> 444510.4658 | I7: אפס | J7: 0 | L7: 2025 | M7: 0.67 | N7: 0.32 | Q7: 4
I8: פטור פיצויים לכל שנת עבודה | J8: ='נתונים ותקרות'!B5 -> 12340 | Q8: 5
A9: התחשבנות פיצויים | I9: אחוז פטור | J9: =IF(YEAR(J18)<L6,M5,IF(YEAR(J18)<L7,M6,M7)) -> 0.52 | Q9: 6
A10: משיכת פיצויים בעבר | B10: ='חישוב פיצויים שנמשכו ב-32 ש"ע'!G20 -> 37156.75855 | D10: פריסת מס בגין פיצויים | I10: אחוז פטור מינימלי | J10: =IF(YEAR(J18)<L6,N5,IF(YEAR(J18)<L7,N6,N7)) -> 0.17 | Q10: 7
A11: מענקי פיצויים מעסיק נוכחי | B11: ='מענקי פיצויים'!C33 -> 927200 | D11: סכום לפריסה -פיצויים חייבים | E11: =B22 -> 482689.5342 | Q11: 8
D12: שנות פריסה | E12: =J14 -> 6 | I12: =A5 -> תקופת עבודה לחישוב פטור | J12: =B5 -> 36.02191781 | Q12: 9
D13: =IF(MONTH(J18)>=10,YEAR(J18)+1,YEAR(J18)) -> 2021 | E13: =IF(E12>=1,E11/E12,0) -> 80448.25571 | I13: עיגול תקופה | J13: =MROUND(J12,4) -> 36 | Q13: 10
D14: =D13+1 -> 2022 | E14: =IF(E12>=2,E11/E12,0) -> 80448.25571 | I14: שנות פריסה | J14: =IF(J13>24,6,J13/4) -> 6 | Q14: 11
A15: סה"כ פיצויים להתחשבנות | B15: =SUM(B10:B14) -> 964356.7586 | D15: =D14+1 -> 2023 | E15: =IF(E12>=3,E11/E12,0) -> 80448.25571 | Q15: 12
A16: סה"כ פיצויים להפחתה מהפטור | B16: =IF(B15>B7,B7+B10,B15) -> 481667.2243 | D16: 2024 | E16: =IF(E12>=4,E11/E12,0) -> 80448.25571
D17: 2025 | E17: =IF(E12>=5,E11/E12,0) -> 80448.25571 | I17: הכנסות בשנת הפרישה
A18: סה"כ ההון הפטור בהתאם לפקודה | B18: =J5*J9*180 -> 791856 | D18: 2026 | E18: =IF(E12=6,E11/E12,0) -> 80448.25571 | I18: תאריך הפרישה | J18: ='חישוב פיצויים שנמשכו ב-32 ש"ע'!D2 -> 2020-12-31
A19: שווי משיכות פיצויים להפחתה מהפטור | B19: =IF(C5="מצב קיים",(B16)*1.35,(B16)*1.35*32/B5) -> 577648.9803 | I19: הכנסות מעבודה | J19: 250000
A20: יתרת ההון הפטור לאחר הפחתת פיצויים | B20: =IF((B18-B19)>J6*180,B18-B19,J6*180) -> 258876 | I20: מס ששולם | J20: 60000
I21: נקודות זיכוי ללקוח | J21: 2.25
A22: פיצויים חייבים במס | B22: =IF(B11>B7,B11-B7,0) -> 482689.5342 | I22: ='חישוב פטור בגיל פרישה'!I22 -> 0 | J22: ='חישוב פטור בגיל פרישה'!J22 -> 00:00:00
A24: היוון קיצבה | D24: פריסת מס בגין היוו קיצבה
A25: סה"כ קיצבה להיוון | B25: ='היוון קיצבה'!E20 -> 45678 | D25: סכום לפריסה - היוון קיצבה | E25: =IF((B20-B25)<0,(B20-B25)*-1,0) -> 0
A26: סה"כ הייון פטור | B26: =IF(B25>B20,B20,B25) -> 45678 | D26: שנות פריסה | E26: =IF(E25=0,0,6) -> 0
A27: סה"כ היוון חייב | B27: =B25-B26 -> 0 | D27: =IF(MONTH(J18)>=10,YEAR(J18)+1,YEAR(J18)) -> 2021 | E27: =($E$25/6) -> 0
A28: יתרת ההון הפטור לאחר הפחתת פיצויים והיוון קיצבה | B28: =IF((B20-B25)<0,0,B20-B25) -> 213198 | D28: =D27+1 -> 2022 | E28: =($E$25/6) -> 0
D29: =D28+1 -> 2023 | E29: 0
A30: המרת הפטור על הקיצבה | B30: =IF((IF((B20/180)>J6,B20/180,J6)-B25/180)>0,(B20-B25)/180,0) -> 1184.433333 | D30: 2024 | E30: 0
D31: 2025 | E31: 0
A32: פירוט מקורות קיצבה מזכה | D32: 2026 | E32: 0
B36: בשנים שלאחר שנת הפרישה | C36: בשנת הפרישה
A37: סה"כ קיצבה מזכה | B37: ='חישובי קיצבה '!H18 -> 0 | C37: =B37 -> 0
A38: מס על הקיצבה | B38: 1427.4 | C38: 5216.066667
A39: קיצבה נטו | B39: =B37-B38 -> -1427.4 | C39: =C37-C38 -> -5216.066667
A40: סה"כ קיצבה מוכרת | B40: ='חישובי קיצבה '!H33 -> 2156 | C40: ='חישובי קיצבה '!H33 -> 2156
A41: קיצבה כוללת נטו | B41: =B39+B40 -> 728.6 | C41: =C39+C40 -> -3060.066667
A43: סה"כ מענק פיצויים | B43: =B15-B10 -> 927200
A44: מס על מענק הפיצויים | B44: 943306.3657
A45: מענק פיצויים נטו | B45: =B43-B44 -> -16106.36566
A47: סה"כ מענק בגין היוון | B47: =B25 -> 45678
A48: מס על ההיוון | B48: 15633.14
A49: מענק בגין היוון נטו | B49: =B47-B48 -> 30044.86

Sheet פירוט הכדאיות (hidden)
A3: שנה | B3: גיל | C3: סה"כ הכנסות נטו בהמרת פיצווים לקיצבה | D3: סה"כ הכנסות נטו במשיכת פיצויים כמענק | E3: הפרש | F3: יתרון
A4: ='חישוב פטור בגיל פרישה'!D13 -> 2021 | B4: =A4-YEAR('חישוב פטור בגיל פרישה'!$J$22) -> 121 | C4: =(12-'חישוב פטור בגיל פרישה'!$E$5)*'חישוב פטור בגיל פרישה'!$C$31+'חישוב פטור בגיל פרישה'!$B$37 -> 796685.5342 | D4: =(12-'כדאיות כלכלית קיצבה מול פיצויים'!$E$5)*'כדאיות כלכלית קיצבה מול פיצויים'!$C$39+'כדאיות כלכלית קיצבה מול פיצויים'!$B$45 -> -10890.299 | E4: =C4-D4 -> 807575.8332 | F4: =IF(E4<0,"יתרון למשיכת פיצויים כמענק","יתרון למשיכת פיצויים כקיצבה") -> יתרון למשיכת פיצויים כקיצבה
A5: =A4+1 -> 2022 | B5: =A5-YEAR('חישוב פטור בגיל פרישה'!$J$22) -> 122 | C5: =C4+'חישוב פטור בגיל פרישה'!$B$31*12 -> 910780.5822 | D5: =12*'כדאיות כלכלית קיצבה מול פיצויים'!$B$39+D4 -> -28019.099 | E5: =C5-D5 -> 938799.6812 | F5: =IF(E5<0,"יתרון למשיכת פיצויים כמענק","יתרון למשיכת פיצויים כקיצבה") -> יתרון למשיכת פיצויים כקיצבה
A6: =A5+1 -> 2023 | B6: =A6-YEAR('חישוב פטור בגיל פרישה'!$J$22) -> 123 | C6: =C5+'חישוב פטור בגיל פרישה'!$B$31*12 -> 1024875.63 | D6: =12*'כדאיות כלכלית קיצבה מול פיצויים'!$B$39+D5 -> -45147.899 | E6: 1070023.529 | F6: יתרון למשיכת פיצויים כקיצבה
A7: 2024 | B7: =A7-YEAR('חישוב פטור בגיל פרישה'!$J$22) -> 124 | C7: =C6+'חישוב פטור בגיל פרישה'!$B$31*12 -> 1138970.678 | D7: =12*'כדאיות כלכלית קיצבה מול פיצויים'!$B$39+D6 -> -62276.699 | E7: 1201247.377 | F7: יתרון למשיכת פיצויים כקיצבה
A8: 2025 | B8: =A8-YEAR('חישוב פטור בגיל פרישה'!$J$22) -> 125 | C8: =C7+'חישוב פטור בגיל פרישה'!$B$31*12 -> 1253065.726 | D8: =12*'כדאיות כלכלית קיצבה מול פיצויים'!$B$39+D7 -> -79405.499 | E8: 1332471.225 | F8: יתרון למשיכת פיצויים כקיצבה
A9: 2026 | B9: =A9-YEAR('חישוב פטור בגיל פרישה'!$J$22) -> 126 | C9: =C8+'חישוב פטור בגיל פרישה'!$B$31*12 -> 1367160.774 | D9: =12*'כדאיות כלכלית קיצבה מול פיצויים'!$B$39+D8 -> -96534.299 | E9: 1463695.073 | F9: יתרון למשיכת פיצויים כקיצבה
A10: 2027 | B10: =A10-YEAR('חישוב פטור בגיל פרישה'!$J$22) -> 127 | C10: =C9+'חישוב פטור בגיל פרישה'!$B$31*12 -> 1481255.822 | D10: =12*'כדאיות כלכלית קיצבה מול פיצויים'!$B$39+D9 -> -113663.099 | E10: 1594918.921 | F10: יתרון למשיכת פיצויים כקיצבה
A11: 2028 | B11: =A11-YEAR('חישוב פטור בגיל פרישה'!$J$22) -> 128 | C11: =C10+'חישוב פטור בגיל פרישה'!$B$31*12 -> 1595350.87 | D11: =12*'כדאיות כלכלית קיצבה מול פיצויים'!$B$39+D10 -> -130791.899 | E11: 1726142.769 | F11: יתרון למשיכת פיצויים כקיצבה
A12: 2029 | B12: =A12-YEAR('חישוב פטור בגיל פרישה'!$J$22) -> 129 | C12: =C11+'חישוב פטור בגיל פרישה'!$B$31*12 -> 1709445.918 | D12: =12*'כדאיות כלכלית קיצבה מול פיצויים'!$B$39+D11 -> -147920.699 | E12: 1857366.617 | F12: יתרון למשיכת פיצויים כקיצבה
A13: 2030 | B13: =A13-YEAR('חישוב פטור בגיל פרישה'!$J$22) -> 130 | C13: =C12+'חישוב פטור בגיל פרישה'!$B$31*12 -> 1823540.966 | D13: =12*'כדאיות כלכלית קיצבה מול פיצויים'!$B$39+D12 -> -165049.499 | E13: 1988590.465 | F13: יתרון למשיכת פיצויים כקיצבה
A14: 2031 | B14: =A14-YEAR('חישוב פטור בגיל פרישה'!$J$22) -> 131 | C14: =C13+'חישוב פטור בגיל פרישה'!$B$31*12 -> 1937636.014 | D14: =12*'כדאיות כלכלית קיצבה מול פיצויים'!$B$39+D13 -> -182178.299 | E14: 2119814.313 | F14: יתרון למשיכת פיצויים כקיצבה
A15: 2032 | B15: =A15-YEAR('חישוב פטור בגיל פרישה'!$J$22) -> 132 | C15: =C14+'חישוב פטור בגיל פרישה'!$B$31*12 -> 2051731.062 | D15: =12*'כדאיות כלכלית קיצבה מול פיצויים'!$B$39+D14 -> -199307.099 | E15: 2251038.161 | F15: יתרון למשיכת פיצויים כקיצבה
A16: 2033 | B16: =A16-YEAR('חישוב פטור בגיל פרישה'!$J$22) -> 133 | C16: =C15+'חישוב פטור בגיל פרישה'!$B$31*12 -> 2165826.11 | D16: =12*'כדאיות כלכלית קיצבה מול פיצויים'!$B$39+D15 -> -216435.899 | E16: 2382262.009 | F16: יתרון למשיכת פיצויים כקיצבה
A17: 2034 | B17: =A17-YEAR('חישוב פטור בגיל פרישה'!$J$22) -> 134 | C17: =C16+'חישוב פטור בגיל פרישה'!$B$31*12 -> 2279921.158 | D17: =12*'כדאיות כלכלית קיצבה מול פיצויים'!$B$39+D16 -> -233564.699 | E17: 2513485.857 | F17: יתרון למשיכת פיצויים כקיצבה
A18: 2035 | B18: =A18-YEAR('חישוב פטור בגיל פרישה'!$J$22) -> 135 | C18: =C17+'חישוב פטור בגיל פרישה'!$B$31*12 -> 2394016.206 | D18: =12*'כדאיות כלכלית קיצבה מול פיצויים'!$B$39+D17 -> -250693.499 | E18: 2644709.705 | F18: יתרון למשיכת פיצויים כקיצבה
A19: 2036 | B19: =A19-YEAR('חישוב פטור בגיל פרישה'!$J$22) -> 136 | C19: =C18+'חישוב פטור בגיל פרישה'!$B$31*12 -> 2508111.254 | D19: =12*'כדאיות כלכלית קיצבה מול פיצויים'!$B$39+D18 -> -267822.299 | E19: 2775933.553 | F19: יתרון למשיכת פיצויים כקיצבה
A20: 2037 | B20: =A20-YEAR('חישוב פטור בגיל פרישה'!$J$22) -> 137 | C20: =C19+'חישוב פטור בגיל פרישה'!$B$31*12 -> 2622206.302 | D20: =12*'כדאיות כלכלית קיצבה מול פיצויים'!$B$39+D19 -> -284951.099 | E20: 2907157.401 | F20: יתרון למשיכת פיצויים כקיצבה
A21: 2038 | B21: =A21-YEAR('חישוב פטור בגיל פרישה'!$J$22) -> 138 | C21: =C20+'חישוב פטור בגיל פרישה'!$B$31*12 -> 2736301.35 | D21: =12*'כדאיות כלכלית קיצבה מול פיצויים'!$B$39+D20 -> -302079.899 | E21: 3038381.249 | F21: יתרון למשיכת פיצויים כקיצבה
A22: 2039 | B22: =A22-YEAR('חישוב פטור בגיל פרישה'!$J$22) -> 139 | C22: =C21+'חישוב פטור בגיל פרישה'!$B$31*12 -> 2850396.398 | D22: =12*'כדאיות כלכלית קיצבה מול פיצויים'!$B$39+D21 -> -319208.699 | E22: 3169605.097 | F22: יתרון למשיכת פיצויים כקיצבה
A23: 2040 | B23: =A23-YEAR('חישוב פטור בגיל פרישה'!$J$22) -> 140 | C23: =C22+'חישוב פטור בגיל פרישה'!$B$31*12 -> 2964491.446 | D23: =12*'כדאיות כלכלית קיצבה מול פיצויים'!$B$39+D22 -> -336337.499 | E23: 3300828.945 | F23: יתרון למשיכת פיצויים כקיצבה
A24: 2041 | B24: =A24-YEAR('חישוב פטור בגיל פרישה'!$J$22) -> 141 | C24: =C23+'חישוב פטור בגיל פרישה'!$B$31*12 -> 3078586.494 | D24: =12*'כדאיות כלכלית קיצבה מול פיצויים'!$B$39+D23 -> -353466.299 | E24: 3432052.793 | F24: יתרון למשיכת פיצויים כקיצבה
A25: 2042 | B25: =A25-YEAR('חישוב פטור בגיל פרישה'!$J$22) -> 142 | C25: =C24+'חישוב פטור בגיל פרישה'!$B$31*12 -> 3192681.542 | D25: =12*'כדאיות כלכלית קיצבה מול פיצויים'!$B$39+D24 -> -370595.099 | E25: 3563276.641 | F25: יתרון למשיכת פיצויים כקיצבה
A26: 2043 | B26: =A26-YEAR('חישוב פטור בגיל פרישה'!$J$22) -> 143 | C26: =C25+'חישוב פטור בגיל פרישה'!$B$31*12 -> 3306776.59 | D26: =12*'כדאיות כלכלית קיצבה מול פיצויים'!$B$39+D25 -> -387723.899 | E26: 3694500.489 | F26: יתרון למשיכת פיצויים כקיצבה
A27: 2044 | B27: =A27-YEAR('חישוב פטור בגיל פרישה'!$J$22) -> 144 | C27: =C26+'חישוב פטור בגיל פרישה'!$B$31*12 -> 3420871.638 | D27: =12*'כדאיות כלכלית קיצבה מול פיצויים'!$B$39+D26 -> -404852.699 | E27: 3825724.337 | F27: יתרון למשיכת פיצויים כקיצבה
A28: 2045 | B28: =A28-YEAR('חישוב פטור בגיל פרישה'!$J$22) -> 145 | C28: =C27+'חישוב פטור בגיל פרישה'!$B$31*12 -> 3534966.686 | D28: =12*'כדאיות כלכלית קיצבה מול פיצויים'!$B$39+D27 -> -421981.499 | E28: 3956948.185 | F28: יתרון למשיכת פיצויים כקיצבה
A29: 2046 | B29: =A29-YEAR('חישוב פטור בגיל פרישה'!$J$22) -> 146 | C29: =C28+'חישוב פטור בגיל פרישה'!$B$31*12 -> 3649061.734 | D29: =12*'כדאיות כלכלית קיצבה מול פיצויים'!$B$39+D28 -> -439110.299 | E29: 4088172.033 | F29: יתרון למשיכת פיצויים כקיצבה
A30: 2047 | B30: =A30-YEAR('חישוב פטור בגיל פרישה'!$J$22) -> 147 | C30: =C29+'חישוב פטור בגיל פרישה'!$B$31*12 -> 3763156.782 | D30: =12*'כדאיות כלכלית קיצבה מול פיצויים'!$B$39+D29 -> -456239.099 | E30: 4219395.881 | F30: יתרון למשיכת פיצויים כקיצבה
A31: 2048 | B31: =A31-YEAR('חישוב פטור בגיל פרישה'!$J$22) -> 148 | C31: =C30+'חישוב פטור בגיל פרישה'!$B$31*12 -> 3877251.83 | D31: =12*'כדאיות כלכלית קיצבה מול פיצויים'!$B$39+D30 -> -473367.899 | E31: 4350619.729 | F31: יתרון למשיכת פיצויים כקיצבה
A32: 2049 | B32: =A32-YEAR('חישוב פטור בגיל פרישה'!$J$22) -> 149 | C32: =C31+'חישוב פטור בגיל פרישה'!$B$31*12 -> 3991346.878 | D32: =12*'כדאיות כלכלית קיצבה מול פיצויים'!$B$39+D31 -> -490496.699 | E32: 4481843.577 | F32: יתרון למשיכת פיצויים כקיצבה
A33: 2050 | B33: =A33-YEAR('חישוב פטור בגיל פרישה'!$J$22) -> 150 | C33: =C32+'חישוב פטור בגיל פרישה'!$B$31*12 -> 4105441.926 | D33: =12*'כדאיות כלכלית קיצבה מול פיצויים'!$B$39+D32 -> -507625.499 | E33: 4613067.425 | F33: יתרון למשיכת פיצויים כקיצבה
A34: 2051 | B34: =A34-YEAR('חישוב פטור בגיל פרישה'!$J$22) -> 151 | C34: =C33+'חישוב פטור בגיל פרישה'!$B$31*12 -> 4219536.974 | D34: =12*'כדאיות כלכלית קיצבה מול פיצויים'!$B$39+D33 -> -524754.299 | E34: 4744291.273 | F34: יתרון למשיכת פיצויים כקיצבה
A35: 2052 | B35: =A35-YEAR('חישוב פטור בגיל פרישה'!$J$22) -> 152 | C35: =C34+'חישוב פטור בגיל פרישה'!$B$31*12 -> 4333632.022 | D35: =12*'כדאיות כלכלית קיצבה מול פיצויים'!$B$39+D34 -> -541883.099 | E35: 4875515.121 | F35: יתרון למשיכת פיצויים כקיצבה

Sheet מדד המחירים לצרכן ומדד הביטוח (hidden)
A1: מדד המחירים לצרכן ומדד ביטוח חיים
A2: מדד המחירים לצרכן | D2: מדד ביטוח חיים
A3: על בסיס ספטמבר 1951 = 100 נקודות | D3: המדד האחרון הידוע ב-1 לכל חודש. המדד הבסיסי מותאם למדד חודש ינואר 1959 (100 נקודות). המדד מתרגם את חילופי המטבעות (מל"י לשקל ולש"ח)
A4: מדד בגין חודש | B4: המדד בנקודות | C4: פורסם בתאריך | D4: חודש | E4: המדד בנקודות | F4: מדד בסיס 1959 ללא עיגול וללא המרת מטבע
A5: 1951-09-01 | B5: 100 | C5: 1951-10-15 | D5: 1951-11-01
A6: 1951-10-01 | B6: 103 | C6: 1951-11-15 | D6: 1951-12-01
A7: 1951-11-01 | B7: 105 | C7: 1951-12-16 | D7: 1952-01-01
A8: 1951-12-01 | B8: 107 | C8: 1952-01-15 | D8: 1952-02-01
A9: 1952-01-01 | B9: 113 | C9: 1952-02-15 | D9: 1952-03-01
A10: 1952-02-01 | B10: 120 | C10: 1952-03-16 | D10: 1952-04-01
A11: 1952-03-01 | B11: 132 | C11: 1952-04-15 | D11: 1952-05-01
A12: 1952-04-01 | B12: 144 | C12: 1952-05-15 | D12: 1952-06-01
A13: 1952-05-01 | B13: 150 | C13: 1952-06-15 | D13: 1952-07-01
A14: 1952-06-01 | B14: 157 | C14: 1952-07-15 | D14: 1952-08-01
A15: 1952-07-01 | B15: 162 | C15: 1952-08-15 | D15: 1952-09-01
A16: 1952-08-01 | B16: 165 | C16: 1952-09-15 | D16: 1952-10-01
A17: 1952-09-01 | B17: 169 | C17: 1952-10-15 | D17: 1952-11-01
A18: 1952-10-01 | B18: 173 | C18: 1952-11-16 | D18: 1952-12-01
A19: 1952-11-01 | B19: 175 | C19: 1952-12-15 | D19: 1953-01-01
A20: 1952-12-01 | B20: 178 | C20: 1953-01-15 | D20: 1953-02-01
A21: 1953-01-01 | B21: 181 | C21: 1953-02-15 | D21: 1953-03-01
A22: 1953-02-01 | B22: 182 | C22: 1953-03-15 | D22: 1953-04-01
A23: 1953-03-01 | B23: 184 | C23: 1953-04-15 | D23: 1953-05-01
A24: 1953-04-01 | B24: 187 | C24: 1953-05-15 | D24: 1953-06-01
A25: 1953-05-01 | B25: 191 | C25: 1953-06-15 | D25: 1953-07-01
A26: 1953-06-01 | B26: 197 | C26: 1953-07-15 | D26: 1953-08-01
A27: 1953-07-01 | B27: 200 | C27: 1953-08-16 | D27: 1953-09-01
A28: 1953-08-01 | B28: 201 | C28: 1953-09-15 | D28: 1953-10-01
A29: 1953-09-01 | B29: 205 | C29: 1953-10-15 | D29: 1953-11-01
A30: 1953-10-01 | B30: 207 | C30: 1953-11-15 | D30: 1953-12-01
A31: 1953-11-01 | B31: 208 | C31: 1953-12-15 | D31: 1954-01-01
A32: 1953-12-01 | B32: 212 | C32: 1954-01-15 | D32: 1954-02-01
A33: 1954-01-01 | B33: 214 | C33: 1954-02-15 | D33: 1954-03-01
A34: 1954-02-01 | B34: 216 | C34: 1954-03-15 | D34: 1954-04-01
A35: 1954-03-01 | B35: 217 | C35: 1954-04-15 | D35: 1954-05-01
A36: 1954-04-01 | B36: 217 | C36: 1954-05-16 | D36: 1954-06-01
A37: 1954-05-01 | B37: 218 | C37: 1954-06-15 | D37: 1954-07-01
A38: 1954-06-01 | B38: 214 | C38: 1954-07-15 | D38: 1954-08-01
A39: 1954-07-01 | B39: 217 | C39: 1954-08-15 | D39: 1954-09-01
A40: 1954-08-01 | B40: 222 | C40: 1954-09-15 | D40: 1954-10-01
A41: 1954-09-01 | B41: 227 | C41: 1954-10-15 | D41: 1954-11-01
A42: 1954-10-01 | B42: 227 | C42: 1954-11-15 | D42: 1954-12-01
A43: 1954-11-01 | B43: 228 | C43: 1954-12-15 | D43: 1955-01-01
A44: 1954-12-01 | B44: 228 | C44: 1955-01-16 | D44: 1955-02-01
A45: 1955-01-01 | B45: 228 | C45: 1955-02-15 | D45: 1955-03-01
A46: 1955-02-01 | B46: 228 | C46: 1955-03-15 | D46: 1955-04-01
A47: 1955-03-01 | B47: 229 | C47: 1955-04-15 | D47: 1955-05-01
A48: 1955-04-01 | B48: 230 | C48: 1955-05-15 | D48: 1955-06-01
A49: 1955-05-01 | B49: 230 | C49: 1955-06-15 | D49: 1955-07-01
A50: 1955-06-01 | B50: 232 | C50: 1955-07-15 | D50: 1955-08-01
A51: 1955-07-01 | B51: 233 | C51: 1955-08-15 | D51: 1955-09-01
A52: 1955-08-01 | B52: 231 | C52: 1955-09-15 | D52: 1955-10-01
A53: 1955-09-01 | B53: 239 | C53: 1955-10-16 | D53: 1955-11-01
A54: 1955-10-01 | B54: 238 | C54: 1955-11-15 | D54: 1955-12-01
A55: 1955-11-01 | B55: 236 | C55: 1955-12-15 | D55: 1956-01-01
A56: 1955-12-01 | B56: 239 | C56: 1956-01-15 | D56: 1956-02-01
A57: 1956-01-01 | B57: 238 | C57: 1956-02-15 | D57: 1956-03-01
A58: 1956-02-01 | B58: 239 | C58: 1956-03-15 | D58: 1956-04-01
A59: 1956-03-01 | B59: 244 | C59: 1956-04-15 | D59: 1956-05-01
A60: 1956-04-01 | B60: 246 | C60: 1956-05-15 | D60: 1956-06-01
A61: 1956-05-01 | B61: 249 | C61: 1956-06-15 | D61: 1956-07-01
A62: 1956-06-01 | B62: 249 | C62: 1956-07-15 | D62: 1956-08-01
A63: 1956-07-01 | B63: 244 | C63: 1956-08-15 | D63: 1956-09-01
A64: 1956-08-01 | B64: 247 | C64: 1956-09-16 | D64: 1956-10-01
A65: 1956-09-01 | B65: 260 | C65: 1956-10-15 | D65: 1956-11-01
A66: 1956-10-01 | B66: 259 | C66: 1956-11-15 | D66: 1956-12-01
A67: 1956-11-01 | B67: 248 | C67: 1956-12-16 | D67: 1957-01-01
A68: 1956-12-01 | B68: 250 | C68: 1957-01-15 | D68: 1957-02-01
A69: 1957-01-01 | B69: 254 | C69: 1957-02-15 | D69: 1957-03-01
A70: 1957-02-01 | B70: 259 | C70: 1957-03-15 | D70: 1957-04-01
A71: 1957-03-01 | B71: 261 | C71: 1957-04-15 | D71: 1957-05-01
A72: 1957-04-01 | B72: 265 | C72: 1957-05-15 | D72: 1957-06-01
A73: 1957-05-01 | B73: 270 | C73: 1957-06-16 | D73: 1957-07-01
A74: 1957-06-01 | B74: 258 | C74: 1957-07-15 | D74: 1957-08-01
A75: 1957-07-01 | B75: 264 | C75: 1957-08-15 | D75: 1957-09-01
A76: 1957-08-01 | B76: 269 | C76: 1957-09-15 | D76: 1957-10-01
A77: 1957-09-01 | B77: 268 | C77: 1957-10-15 | D77: 1957-11-01
A78: 1957-10-01 | B78: 268 | C78: 1957-11-15 | D78: 1957-12-01
A79: 1957-11-01 | B79: 267 | C79: 1957-12-15 | D79: 1958-01-01
A80: 1957-12-01 | B80: 263 | C80: 1958-01-15 | D80: 1958-02-01
A81: 1958-01-01 | B81: 267 | C81: 1958-02-16 | D81: 1958-03-01
A82: 1958-02-01 | B82: 269 | C82: 1958-03-16 | D82: 1958-04-01
A83: 1958-03-01 | B83: 268 | C83: 1958-04-15 | D83: 1958-05-01
A84: 1958-04-01 | B84: 272 | C84: 1958-05-15 | D84: 1958-06-01
A85: 1958-05-01 | B85: 276 | C85: 1958-06-15 | D85: 1958-07-01
A86: 1958-06-01 | B86: 267 | C86: 1958-07-15 | D86: 1958-08-01
A87: 1958-07-01 | B87: 274 | C87: 1958-08-15 | D87: 1958-09-01
A88: 1958-08-01 | B88: 274 | C88: 1958-09-15 | D88: 1958-10-01
A89: 1958-09-01 | B89: 280 | C89: 1958-10-15 | D89: 1958-11-01
A90: 1958-10-01 | B90: 280 | C90: 1958-11-16 | D90: 1958-12-01
A91: 1958-11-01 | B91: 273 | C91: 1958-12-15 | D91: 1959-01-01
A92: 1958-12-01 | B92: 274 | C92: 1959-01-15 | D92: 1959-02-01
A93: 1959-01-01 | B93: 275.3 | C93: 1959-02-15 | D93: 1959-03-01 | E93: =ROUND(F93,2) -> 100 | F93: =B93/2.753 -> 100
A94: 1959-02-01 | B94: 277.5024 | C94: 1959-03-15 | D94: 1959-04-01 | E94: 100.8 | F94: =B94/2.753 -> 100.8
A95: 1959-03-01 | B95: 277.7777 | C95: 1959-04-15 | D95: 1959-05-01 | E95: 100.9 | F95: 100.9
A96: 1959-04-01 | B96: 276.4012 | C96: 1959-05-15 | D96: 1959-06-01 | E96: 100.4 | F96: 100.4
A97: 1959-05-01 | B97: 287.1379 | C97: 1959-06-15 | D97: 1959-07-01 | E97: 104.3 | F97: 104.3
A98: 1959-06-01 | B98: 273.3729 | C98: 1959-07-15 | D98: 1959-08-01 | E98: 99.3 | F98: 99.3
A99: 1959-07-01 | B99: 269.794 | C99: 1959-08-16 | D99: 1959-09-01 | E99: 98 | F99: 98
A100: 1959-08-01 | B100: 269.5187 | C100: 1959-09-15 | D100: 1959-10-01 | E100: 97.9 | F100: 97.9
A101: 1959-09-01 | B101: 275.5753 | C101: 1959-10-15 | D101: 1959-11-01 | E101: 100.1 | F101: 100.1
A102: 1959-10-01 | B102: 280.5307 | C102: 1959-11-15 | D102: 1959-12-01 | E102: 101.9 | F102: 101.9
A103: 1959-11-01 | B103: 281.0813 | C103: 1959-12-15 | D103: 1960-01-01 | E103: 102.1 | F103: 102.1
A104: 1959-12-01 | B104: 279.7048 | C104: 1960-01-15 | D104: 1960-02-01 | E104: 101.6 | F104: 101.6
A105: 1960-01-01 | B105: 278.6036 | C105: 1960-02-15 | D105: 1960-03-01 | E105: 101.2 | F105: 101.2
A106: 1960-02-01 | B106: 279.1542 | C106: 1960-03-15 | D106: 1960-04-01 | E106: 101.4 | F106: 101.4
A107: 1960-03-01 | B107: 281.9072 | C107: 1960-04-15 | D107: 1960-05-01 | E107: 102.4 | F107: 102.4
A108: 1960-04-01 | B108: 278.6036 | C108: 1960-05-15 | D108: 1960-06-01 | E108: 101.2 | F108: 101.2
A109: 1960-05-01 | B109: 284.1096 | C109: 1960-06-15 | D109: 1960-07-01 | E109: 103.2 | F109: 103.2
A110: 1960-06-01 | B110: 277.5024 | C110: 1960-07-15 | D110: 1960-08-01 | E110: 100.8 | F110: 100.8
A111: 1960-07-01 | B111: 278.8789 | C111: 1960-08-15 | D111: 1960-09-01 | E111: 101.3 | F111: 101.3
A112: 1960-08-01 | B112: 279.4295 | C112: 1960-09-15 | D112: 1960-10-01 | E112: 101.5 | F112: 101.5
A113: 1960-09-01 | B113: 286.5873 | C113: 1960-10-16 | D113: 1960-11-01 | E113: 104.1 | F113: 104.1
A114: 1960-10-01 | B114: 292.3686 | C114: 1960-11-15 | D114: 1960-12-01 | E114: 106.2 | F114: 106.2
A115: 1960-11-01 | B115: 291.2674 | C115: 1960-12-15 | D115: 1961-01-01 | E115: 105.8 | F115: 105.8
A116: 1960-12-01 | B116: 289.3403 | C116: 1961-01-15 | D116: 1961-02-01 | E116: 105.1 | F116: 105.1
A117: 1961-01-01 | B117: 295.9475 | C117: 1961-02-15 | D117: 1961-03-01 | E117: 107.5 | F117: 107.5
A118: 1961-02-01 | B118: 293.4698 | C118: 1961-03-15 | D118: 1961-04-01 | E118: 106.6 | F118: 106.6
A119: 1961-03-01 | B119: 294.0204 | C119: 1961-04-16 | D119: 1961-05-01 | E119: 106.8 | F119: 106.8
A120: 1961-04-01 | B120: 293.7451 | C120: 1961-05-15 | D120: 1961-06-01 | E120: 106.7 | F120: 106.7
A121: 1961-05-01 | B121: 314.6679 | C121: 1961-06-15 | D121: 1961-07-01 | E121: 114.3 | F121: 114.3
A122: 1961-06-01 | B122: 303.9312 | C122: 1961-07-16 | D122: 1961-08-01 | E122: 110.4 | F122: 110.4
A123: 1961-07-01 | B123: 297.324 | C123: 1961-08-15 | D123: 1961-09-01 | E123: 108 | F123: 108
A124: 1961-08-01 | B124: 294.8463 | C124: 1961-09-15 | D124: 1961-10-01 | E124: 107.1 | F124: 107.1
A125: 1961-09-01 | B125: 304.7571 | C125: 1961-10-15 | D125: 1961-11-01 | E125: 110.7 | F125: 110.7
A126: 1961-10-01 | B126: 308.8866 | C126: 1961-11-15 | D126: 1961-12-01 | E126: 112.2 | F126: 112.2
A127: 1961-11-01 | B127: 311.3643 | C127: 1961-12-15 | D127: 1962-01-01 | E127: 113.1 | F127: 113.1
A128: 1961-12-01 | B128: 315.4938 | C128: 1962-01-15 | D128: 1962-02-01 | E128: 114.6 | F128: 114.6
A129: 1962-01-01 | B129: 316.595 | C129: 1962-02-15 | D129: 1962-03-01 | E129: 115 | F129: 115
A130: 1962-02-01 | B130: 318.2468 | C130: 1962-03-15 | D130: 1962-04-01 | E130: 115.6 | F130: 115.6
A131: 1962-03-01 | B131: 325.4046 | C131: 1962-04-15 | D131: 1962-05-01 | E131: 118.2 | F131: 118.2
A132: 1962-04-01 | B132: 331.1859 | C132: 1962-05-15 | D132: 1962-06-01 | E132: 120.3 | F132: 120.3
A133: 1962-05-01 | B133: 327.8823 | C133: 1962-06-15 | D133: 1962-07-01 | E133: 119.1 | F133: 119.1
A134: 1962-06-01 | B134: 323.4775 | C134: 1962-07-15 | D134: 1962-08-01 | E134: 117.5 | F134: 117.5
A135: 1962-07-01 | B135: 326.2305 | C135: 1962-08-15 | D135: 1962-09-01 | E135: 118.5 | F135: 118.5
A136: 1962-08-01 | B136: 330.0847 | C136: 1962-09-16 | D136: 1962-10-01 | E136: 119.9 | F136: 119.9
A137: 1962-09-01 | B137: 337.7931 | C137: 1962-10-15 | D137: 1962-11-01 | E137: 122.7 | F137: 122.7
A138: 1962-10-01 | B138: 341.372 | C138: 1962-11-15 | D138: 1962-12-01 | E138: 124 | F138: 124
A139: 1962-11-01 | B139: 343.8497 | C139: 1962-12-16 | D139: 1963-01-01 | E139: 124.9 | F139: 124.9
A140: 1962-12-01 | B140: 347.7039 | C140: 1963-01-15 | D140: 1963-02-01 | E140: 126.3 | F140: 126.3
A141: 1963-01-01 | B141: 347.7039 | C141: 1963-02-15 | D141: 1963-03-01 | E141: 126.3 | F141: 126.3
A142: 1963-02-01 | B142: 347.7039 | C142: 1963-03-15 | D142: 1963-04-01 | E142: 126.3 | F142: 126.3
A143: 1963-03-01 | B143: 347.7039 | C143: 1963-04-15 | D143: 1963-05-01 | E143: 126.3 | F143: 126.3
A144: 1963-04-01 | B144: 343.8497 | C144: 1963-05-15 | D144: 1963-06-01 | E144: 124.9 | F144: 124.9
A145: 1963-05-01 | B145: 355.137 | C145: 1963-06-16 | D145: 1963-07-01 | E145: 129 | F145: 129
A146: 1963-06-01 | B146: 352.1087 | C146: 1963-07-15 | D146: 1963-08-01 | E146: 127.9 | F146: 127.9
A147: 1963-07-01 | B147: 352.384 | C147: 1963-08-15 | D147: 1963-09-01 | E147: 128 | F147: 128
A148: 1963-08-01 | B148: 346.6027 | C148: 1963-09-15 | D148: 1963-10-01 | E148: 125.9 | F148: 125.9
A149: 1963-09-01 | B149: 353.4852 | C149: 1963-10-15 | D149: 1963-11-01 | E149: 128.4 | F149: 128.4
A150: 1963-10-01 | B150: 356.2382 | C150: 1963-11-15 | D150: 1963-12-01 | E150: 129.4 | F150: 129.4
A151: 1963-11-01 | B151: 363.1207 | C151: 1963-12-15 | D151: 1964-01-01 | E151: 131.9 | F151: 131.9
A152: 1963-12-01 | B152: 365.0478 | C152: 1964-01-15 | D152: 1964-02-01 | E152: 132.6 | F152: 132.6
A153: 1964-01-01 | B153: 367.8008 | C153: 1964-02-16 | D153: 1964-03-01 | E153: 133.6 | F153: 133.6
A154: 1964-02-01 | B154: 367.8008 | C154: 1964-03-15 | D154: 1964-04-01 | E154: 133.6 | F154: 133.6
A155: 1964-03-01 | B155: 367.2502 | C155: 1964-04-15 | D155: 1964-05-01 | E155: 133.4 | F155: 133.4
A156: 1964-04-01 | B156: 363.9466 | C156: 1964-05-15 | D156: 1964-06-01 | E156: 132.2 | F156: 132.2
A157: 1964-05-01 | B157: 376.3351 | C157: 1964-06-15 | D157: 1964-07-01 | E157: =ROUND(F157,2) -> 136.7 | F157: 136.7
A158: 1964-06-01 | B158: 365.8737 | C158: 1964-07-15 | D158: 1964-08-01 | E158: 132.9 | F158: =B158/2.753 -> 132.9
A159: 1964-07-01 | B159: 370.8291 | C159: 1964-08-16 | D159: 1964-09-01 | E159: 134.7 | F159: 134.7
A160: 1964-08-01 | B160: 367.2502 | C160: 1964-09-15 | D160: 1964-10-01 | E160: 133.4 | F160: 133.4
A161: 1964-09-01 | B161: 370.0032 | C161: 1964-10-15 | D161: 1964-11-01 | E161: 134.4 | F161: 134.4
A162: 1964-10-01 | B162: 374.1327 | C162: 1964-11-15 | D162: 1964-12-01 | E162: 135.9 | F162: 135.9
A163: 1964-11-01 | B163: 377.4363 | C163: 1964-12-15 | D163: 1965-01-01 | E163: 137.1 | F163: 137.1
A164: 1964-12-01 | B164: 381.2905 | C164: 1965-01-15 | D164: 1965-02-01 | E164: 138.5 | F164: 138.5
A165: 1965-01-01 | B165: 384.549777 | C165: 1965-02-15 | D165: 1965-03-01 | E165: 139.68 | F165: 139.6839001
A166: 1965-02-01 | B166: 386.403922 | C166: 1965-03-15 | D166: 1965-04-01 | E166: 140.36 | F166: 140.3573999
A167: 1965-03-01 | B167: 394.191333 | C167: 1965-04-15 | D167: 1965-05-01 | E167: 143.19 | F167: 143.1860999
A168: 1965-04-01 | B168: 397.528795 | C168: 1965-05-16 | D168: 1965-06-01 | E168: 144.4 | F168: 144.3983999
A169: 1965-05-01 | B169: 405.687035 | C169: 1965-06-15 | D169: 1965-07-01 | E169: 147.36 | F169: 147.3617999
A170: 1965-06-01 | B170: 403.83289 | C170: 1965-07-15 | D170: 1965-08-01 | E170: 146.69 | F170: 146.6883
A171: 1965-07-01 | B171: 400.866257 | C171: 1965-08-15 | D171: 1965-09-01 | E171: 145.61 | F171: 145.6107
A172: 1965-08-01 | B172: 396.416308 | C172: 1965-09-15 | D172: 1965-10-01 | E172: 143.99 | F172: 143.9943
A173: 1965-09-01 | B173: 401.607915 | C173: 1965-10-15 | D173: 1965-11-01 | E173: 145.88 | F173: 145.8800999
A174: 1965-10-01 | B174: 405.687035 | C174: 1965-11-15 | D174: 1965-12-01 | E174: 147.36 | F174: 147.3617999
A175: 1965-11-01 | B175: 407.91201 | C175: 1965-12-15 | D175: 1966-01-01 | E175: 148.17 | F175: 148.17
A176: 1965-12-01 | B176: 408.282839 | C176: 1966-01-16 | D176: 1966-02-01 | E176: 148.3 | F176: 148.3047
A177: 1966-01-01 | B177: 413.474447 | C177: 1966-02-15 | D177: 1966-03-01 | E177: 150.19 | F177: 150.1905002
A178: 1966-02-01 | B178: 417.924396 | C178: 1966-03-15 | D178: 1966-04-01 | E178: 151.81 | F178: 151.8069001
A179: 1966-03-01 | B179: 424.970149 | C179: 1966-04-15 | D179: 1966-05-01 | E179: 154.37 | F179: 154.3662001
A180: 1966-04-01 | B180: 432.75756 | C180: 1966-05-15 | D180: 1966-06-01 | E180: 157.19 | F180: 157.1949001
A181: 1966-05-01 | B181: 434.611705 | C181: 1966-06-15 | D181: 1966-07-01 | E181: 157.87 | F181: 157.8683999
A182: 1966-06-01 | B182: 433.128389 | C182: 1966-07-15 | D182: 1966-08-01 | E182: 157.33 | F182: 157.3296001
A183: 1966-07-01 | B183: 434.240876 | C183: 1966-08-15 | D183: 1966-09-01 | E183: 157.73 | F183: 157.7337
A184: 1966-08-01 | B184: 429.420098 | C184: 1966-09-15 | D184: 1966-10-01 | E184: 155.98 | F184: 155.9826001
A185: 1966-09-01 | B185: 435.724193 | C185: 1966-10-16 | D185: 1966-11-01 | E185: 158.27 | F185: 158.2725002
A186: 1966-10-01 | B186: 439.432483 | C186: 1966-11-15 | D186: 1966-12-01 | E186: 159.62 | F186: 159.6194998
A187: 1966-11-01 | B187: 437.207509 | C187: 1966-12-15 | D187: 1967-01-01 | E187: 158.81 | F187: 158.8113
A188: 1966-12-01 | B188: 440.174142 | C188: 1967-01-15 | D188: 1967-02-01 | E188: 159.89 | F188: 159.8889001
A189: 1967-01-01 | B189: 439.803313 | C189: 1967-02-15 | D189: 1967-03-01 | E189: 159.75 | F189: 159.7542001
A190: 1967-02-01 | B190: 435.724193 | C190: 1967-03-15 | D190: 1967-04-01 | E190: 158.27 | F190: 158.2725002
A191: 1967-03-01 | B191: 437.578338 | C191: 1967-04-16 | D191: 1967-05-01 | E191: 158.95 | F191: 158.946
A192: 1967-04-01 | B192: 444.253262 | C192: 1967-05-15 | D192: 1967-06-01 | E192: 161.37 | F192: 161.3706001
A193: 1967-05-01 | B193: 445.365749 | C193: 1967-06-15 | D193: 1967-07-01 | E193: 161.77 | F193: 161.7747
A194: 1967-06-01 | B194: 440.544971 | C194: 1967-07-16 | D194: 1967-08-01 | E194: 160.02 | F194: 160.0236001
A195: 1967-07-01 | B195: 437.207509 | C195: 1967-08-15 | D195: 1967-09-01 | E195: 158.81 | F195: 158.8113
A196: 1967-08-01 | B196: 433.128389 | C196: 1967-09-15 | D196: 1967-10-01 | E196: 157.33 | F196: 157.3296001
A197: 1967-09-01 | B197: 432.757556 | C197: 1967-10-15 | D197: 1967-11-01 | E197: 157.19 | F197: 157.1948987
A198: 1967-10-01 | B198: 436.095022 | C198: 1967-11-15 | D198: 1967-12-01 | E198: 158.41 | F198: 158.4072001
A199: 1967-11-01 | B199: 437.949167 | C199: 1967-12-15 | D199: 1968-01-01 | E199: 159.08 | F199: 159.0807
A200: 1967-12-01 | B200: 440.9158 | C200: 1968-01-15 | D200: 1968-02-01 | E200: 160.16 | F200: 160.1583
... 637 more rows

Sheet מס על הקיצבה (hidden)
A2: חישוב מס בשנים שלאחר שנת הפרישה
A5: חישוב מס | K5: שווי נקודת זיכוי | L5: ='נתונים ותקרות'!$B$6 -> 218
A6: קיצבה ברוטו | B6: קיצבה+ שכר בפריסה | D6: מס
B7: חודשי | C7: שנתי | D7: מס שנתי | E7: מס חודשי | K7: רווק | L7: 2.25
A8: קיצבה ברוטו בניכוי פטור | B8: =IF('חישוב פטור בגיל פרישה'!B27=0,'חישוב פטור בגיל פרישה'!B29,'חישוב פטור בגיל פרישה'!B29-'חישוב פטור בגיל פרישה'!B27) -> 8815.566667 | C8: =12*B8 -> 105786.8 | D8: =E8*12 -> 5904.952 | E8: =E25 -> 492.0793333 | K8: נשוי ללא ילדים | L8: =L7 -> 2.25
A9: קיצבה ברוטו + פריסת מס פיצויים | B9: ='חישוב פטור בגיל פרישה'!E13/12+'מס על הקיצבה'!B8 -> 15519.58798 | C9: =12*B9 -> 186235.0557 | D9: =E9*12 -> 23199.26727 | E9: =E31 -> 1933.272272 | K9: אלמן/גרוש ללא ילדים | L9: =L8 -> 2.25
A10: קיצבה ברוטו + פריסת מס פיצויים ופריסת מס היוון | B10: ='חישוב פטור בגיל פרישה'!E27/12+B9 -> 15519.58798 | C10: 186235.0557 | D10: 23199.26727 | E10: =E37 -> 1933.272272 | K10: נשוי בן 70 ומעלה שבת זוגו אינה עובדת | L10: 3.25
K11: נשואה בת 70 ומעלה שבן זוגה אינו עובד | L11: 3.75
K12: רווקה | L12: 3.25
B13: שיעור מס | C13: הכנסה חודשית | D13: סכום במדרגה | E13: סכום מצטבר | K13: נשואה ללא ילדים | L13: 3.25
A14: 1 | B14: 0.1 | C14: ='נתונים ותקרות'!B17 -> 0 | D14: 0 | E14: 0 | K14: אלמנה/גרושה ללא ילדים | L14: 3.25
A15: 2 | B15: 0.14 | C15: ='נתונים ותקרות'!B18 -> 6290 | D15: =B14*C15 -> 629 | E15: =E14+D15 -> 629 | K15: גבר הורה יחיד ולו ילד בוגר בחזקתו | L15: 4.25
A16: 3 | B16: 0.2 | C16: ='נתונים ותקרות'!B19 -> 9030 | D16: =(C16-C15)*B15 -> 383.6 | E16: =E15+D16 -> 1012.6 | K16: אב החי הנפרד ולו יילוד או ילד בוגר בחזקתו | L16: 4.25
A17: 4 | B17: 0.31 | C17: ='נתונים ותקרות'!B20 -> 14490 | D17: =(C17-C16)*B16 -> 1092 | E17: =E16+D17 -> 2104.6 | K17: נערה בגיל 16-18 | L17: 4.25
A18: 5 | B18: 0.35 | C18: ='נתונים ותקרות'!B21 -> 20140 | D18: 1751.5 | E18: 3856.1 | K18: אשה נשואה ולה ילד בגיל 6-17 | L18: 4.25
A19: 6 | B19: 0.47 | C19: ='נתונים ותקרות'!B22 -> 41910 | D19: 7619.5 | E19: 11475.6 | K19: אשה נשואה ולה ילד בשנה שלאחר לידתו ועד השנה בה מלאו לו 5 | L19: 4.75
A20: 7 | B20: 0.5 | C20: ='נתונים ותקרות'!B23 -> 53970 | D20: 5668.2 | E20: 17143.8 | K20: גבר הורה יחיד ולו יילוד בחזקתו | L20: 4.75
K21: אשה הורה יחיד ולה יילוד בחזקתה | L21: 5.25
A22: הכנסה | C22: מס מצטבר עד המדרגה הקודמת | D22: מס במדרגה | E22: מס מחושב לפני נקודות זיכוי | K22: גבר הורה יחיד ולו ילד אחד, בגיל 4 או 5, בחזקתו | L22: 5.25
A23: =IF(B8<0,0,B8) -> 8815.566667 | C23: =SUMIF(C14:C20,"<"&A23,D14:D20) -> 629 | D23: =(A23-LOOKUP(A23,C14:C20))*LOOKUP(A23,C14:C20,B14:B20) -> 353.5793333 | E23: =D23+C23 -> 982.5793333 | F23: קיצבה | K23: גבר החי בנפרד ומשלם מזונות בגין פעוט, בשנה שלאחר שנת הלידה ובשנה שבה מלאו לו שנתיים שאיננו בחזקתו | L23: 5.25
A24: מספר נקודות זיכוי | B24: ='חישוב פטור בגיל פרישה'!J21 -> 2.25 | E24: =B24*$L$5*-1 -> -490.5 | K24: אב החי בנפרד ולו ילד אחד בגיל שנה עד גיל 5 בחזקתו | L24: 5.25
C25: סה"כ מס | E25: =IF((E23+E24)>0,E23+E24,0) -> 492.0793333 | K25: אשה הורה יחיד ולה ילד אחד בגיל 4 או 5 בחזקתה | L25: 5.75
K26: אשה החיה בנפרד ולה ילד אחד בגיל שנה עד גיל 5 בחזקתה | L26: 5.75
K27: אשה החיה בנפרד ומשלמת מזונות בגין פעוט, בשנה שלאחר שנת הלידה ובשנה שבה מלאו לו שנתיים, שלא בחזקתה | L27: 5.75
A28: הכנסה | C28: מס מצטבר עד המדרגה הקודמת | D28: מס במדרגה | E28: מס מחושב לפני נקודות זיכוי
A29: =B9 -> 15519.58798 | C29: =SUMIF(C14:C20,"<"&A29,D14:D20) -> 2104.6 | D29: =(A29-LOOKUP(A29,C14:C20))*LOOKUP(A29,C14:C20,B14:B20) -> 319.1722725 | E29: =D29+C29 -> 2423.772272 | F29: קיצבה + פריסת מס פיצויים
A30: מספר נקודות זיכוי | B30: =B24 -> 2.25 | E30: =B30*$L$5*-1 -> -490.5
C31: סה"כ מס | E31: =IF((E29+E30)>0,E29+E30,0) -> 1933.272272
A34: הכנסה | C34: מס מצטבר עד המדרגה הקודמת | D34: מס במדרגה | E34: מס מחושב לפני נקודות זיכוי
A35: =B10 -> 15519.58798 | C35: =SUMIF(C14:C20,"<"&A35,D14:D20) -> 2104.6 | D35: =(A35-LOOKUP(A35,C14:C20))*LOOKUP(A35,C14:C20,B14:B20) -> 319.1722725 | E35: =D35+C35 -> 2423.772272 | F35: קיצבה +פריסת מס פיצויים + פריסת מס היוון
A36: מספר נקודות זיכוי | B36: =B30 -> 2.25 | E36: =B36*$L$5*-1 -> -490.5
C37: סה"כ מס | E37: =IF((E35+E36)>0,E35+E36,0) -> 1933.272272

Sheet מס על הקיצבה 2 (hidden)
A5: חישוב מס בשנת הפרישה | K5: שווי נקודת זיכוי | L5: ='נתונים ותקרות'!$B$6 -> 218
A6: קיצבה ברוטו | B6: קיצבה+ שכר בפריסה | D6: מס
B7: חודשי | C7: שנתי | D7: מס שנתי | E7: מס חודשי | K7: רווק | L7: 2.25
A8: קיצבה ברוטו בניכוי פטור + שכר בשנת הפרישה | B8: =A23 -> 21166.66667 | C8: =12*B8 -> 254000 | D8: =E8*12 -> 44699.2 | E8: =E25 -> 3724.933333 | K8: נשוי ללא ילדים | L8: =L7 -> 2.25
A9: קיצבה ברוטו + פריסת מס פיצויים | B9: =B8+'חישוב פטור בגיל פרישה'!E13/12 -> 27870.68798 | C9: =12*B9 -> 334448.2557 | D9: =E9*12 -> 78742.0895 | E9: =IF(A23=0,'מס על הקיצבה+פיצויים'!E19,'מס על הקיצבה+פיצויים'!E19-'מס על הקיצבה 2'!E24) -> 6561.840791 | K9: אלמן/גרוש ללא ילדים | L9: =L8 -> 2.25
A10: קיצבה ברוטו + פריסת מס פיצויים ופריסת מס היוון | B10: =B9+'חישוב פטור בגיל פרישה'!E27/12 -> 27870.68798 | C10: =12*B10 -> 334448.2557 | D10: 78742.0895 | E10: =IF(AND(A23=0,'מס על הקיצבה+פיצויים'!A17=0),'מס על הקיצבה+פיצויים+היוון'!E19,'מס על הקיצבה+פיצויים+היוון'!E17) -> 6561.840791 | K10: נשוי בן 70 ומעלה שבת זוגו אינה עובדת | L10: 3.25
K11: נשואה בת 70 ומעלה שבן זוגה אינו עובד | L11: 3.75
K12: רווקה | L12: 3.25
B13: שיעור מס | C13: הכנסה חודשית | D13: סכום במדרגה | E13: סכום מצטבר | K13: נשואה ללא ילדים | L13: 3.25
A14: 1 | B14: 0.1 | C14: ='נתונים ותקרות'!B17 -> 0 | D14: 0 | E14: 0 | K14: אלמנה/גרושה ללא ילדים | L14: 3.25
A15: 2 | B15: 0.14 | C15: ='נתונים ותקרות'!B18 -> 6290 | D15: =B14*C15 -> 629 | E15: =E14+D15 -> 629 | K15: גבר הורה יחיד ולו ילד בוגר בחזקתו | L15: 4.25
A16: 3 | B16: 0.2 | C16: ='נתונים ותקרות'!B19 -> 9030 | D16: =(C16-C15)*B15 -> 383.6 | E16: =E15+D16 -> 1012.6 | K16: אב החי הנפרד ולו יילוד או ילד בוגר בחזקתו | L16: 4.25
A17: 4 | B17: 0.31 | C17: ='נתונים ותקרות'!B20 -> 14490 | D17: =(C17-C16)*B16 -> 1092 | E17: =E16+D17 -> 2104.6 | K17: נערה בגיל 16-18 | L17: 4.25
A18: 5 | B18: 0.35 | C18: ='נתונים ותקרות'!B21 -> 20140 | D18: 1751.5 | E18: 3856.1 | K18: אשה נשואה ולה ילד בגיל 6-17 | L18: 4.25
A19: 6 | B19: 0.47 | C19: ='נתונים ותקרות'!B22 -> 41910 | D19: 7619.5 | E19: 11475.6 | K19: אשה נשואה ולה ילד בשנה שלאחר לידתו ועד השנה בה מלאו לו 5 | L19: 4.75
A20: 7 | B20: 0.5 | C20: ='נתונים ותקרות'!B23 -> 53970 | D20: 5668.2 | E20: 17143.8 | K20: גבר הורה יחיד ולו יילוד בחזקתו | L20: 4.75
K21: אשה הורה יחיד ולה יילוד בחזקתה | L21: 5.25
A22: הכנסה | C22: מס מצטבר עד המדרגה הקודמת | D22: מס במדרגה | E22: מס מחושב לפני נקודות זיכוי | K22: גבר הורה יחיד ולו ילד אחד, בגיל 4 או 5, בחזקתו | L22: 5.25
A23: =IF('חישוב פטור בגיל פרישה'!C29=0,'חישוב פטור בגיל פרישה'!J19/12,(('חישוב פטור בגיל פרישה'!C29-'חישוב פטור בגיל פרישה'!$B$27)*(13-'חישוב פטור בגיל פרישה'!E5)+'חישוב פטור בגיל פרישה'!J19)/12) -> 21166.66667 | C23: =SUMIF(C14:C20,"<"&A23,D14:D20) -> 3856.1 | D23: =(A23-LOOKUP(A23,C14:C20))*LOOKUP(A23,C14:C20,B14:B20) -> 359.3333333 | E23: =D23+C23 -> 4215.433333 | K23: גבר החי בנפרד ומשלם מזונות בגין פעוט, בשנה שלאחר שנת הלידה ובשנה שבה מלאו לו שנתיים שאיננו בחזקתו | L23: 5.25
A24: מספר נקודות זיכוי | B24: ='חישוב פטור בגיל פרישה'!J21 -> 2.25 | E24: =B24*$L$5*-1 -> -490.5 | K24: אב החי בנפרד ולו ילד אחד בגיל שנה עד גיל 5 בחזקתו | L24: 5.25
C25: סה"כ מס | E25: =IF((E23+E24)>0,E23+E24,0) -> 3724.933333 | K25: אשה הורה יחיד ולה ילד אחד בגיל 4 או 5 בחזקתה | L25: 5.75
K26: אשה החיה בנפרד ולה ילד אחד בגיל שנה עד גיל 5 בחזקתה | L26: 5.75
K27: אשה החיה בנפרד ומשלמת מזונות בגין פעוט, בשנה שלאחר שנת הלידה ובשנה שבה מלאו לו שנתיים, שלא בחזקתה | L27: 5.75

Sheet מס על הקיצבה+פיצויים (hidden)
K5: שווי נקודת זיכוי | L5: ='נתונים ותקרות'!$B$6 -> 218
B7: שיעור מס | C7: הכנסה חודשית | D7: סכום במדרגה | E7: סכום מצטבר | K7: רווק | L7: 2.25
A8: 1 | B8: 0.1 | C8: ='נתונים ותקרות'!B17 -> 0 | D8: 0 | E8: 0 | K8: נשוי ללא ילדים | L8: =L7 -> 2.25
A9: 2 | B9: 0.14 | C9: ='נתונים ותקרות'!B18 -> 6290 | D9: =B8*C9 -> 629 | E9: =E8+D9 -> 629 | K9: אלמן/גרוש ללא ילדים | L9: =L8 -> 2.25
A10: 3 | B10: 0.2 | C10: ='נתונים ותקרות'!B19 -> 9030 | D10: =(C10-C9)*B9 -> 383.6 | E10: =E9+D10 -> 1012.6 | K10: נשוי בן 70 ומעלה שבת זוגו אינה עובדת | L10: 3.25
A11: 4 | B11: 0.31 | C11: ='נתונים ותקרות'!B20 -> 14490 | D11: =(C11-C10)*B10 -> 1092 | E11: =E10+D11 -> 2104.6 | K11: נשואה בת 70 ומעלה שבן זוגה אינו עובד | L11: 3.75
A12: 5 | B12: 0.35 | C12: ='נתונים ותקרות'!B21 -> 20140 | D12: 1751.5 | E12: 3856.1 | K12: רווקה | L12: 3.25
A13: 6 | B13: 0.47 | C13: ='נתונים ותקרות'!B22 -> 41910 | D13: 7619.5 | E13: 11475.6 | K13: נשואה ללא ילדים | L13: 3.25
A14: 7 | B14: 0.5 | C14: ='נתונים ותקרות'!B23 -> 53970 | D14: 5668.2 | E14: 17143.8 | K14: אלמנה/גרושה ללא ילדים | L14: 3.25
K15: גבר הורה יחיד ולו ילד בוגר בחזקתו | L15: 4.25
A16: הכנסה | C16: מס מצטבר עד המדרגה הקודמת | D16: מס במדרגה | E16: מס מחושב לפני נקודות זיכוי | K16: אב החי הנפרד ולו יילוד או ילד בוגר בחזקתו | L16: 4.25
A17: ='מס על הקיצבה 2'!B9 -> 27870.68798 | C17: =SUMIF(C8:C14,"<"&A17,D8:D14) -> 3856.1 | D17: =(A17-LOOKUP(A17,C8:C14))*LOOKUP(A17,C8:C14,B8:B14) -> 2705.740791 | E17: =D17+C17 -> 6561.840791 | K17: נערה בגיל 16-18 | L17: 4.25
A18: מספר נקודות זיכוי | B18: ='חישוב פטור בגיל פרישה'!J21 -> 2.25 | E18: =B18*$L$5*-1 -> -490.5 | K18: אשה נשואה ולה ילד בגיל 6-17 | L18: 4.25
C19: סה"כ מס | E19: =IF((E17+E18)>0,E17+E18,0) -> 6071.340791 | K19: אשה נשואה ולה ילד בשנה שלאחר לידתו ועד השנה בה מלאו לו 5 | L19: 4.75
K20: גבר הורה יחיד ולו יילוד בחזקתו | L20: 4.75
K21: אשה הורה יחיד ולה יילוד בחזקתה | L21: 5.25
D22: ='מס על הקיצבה 2'!B9 -> 27870.68798 | K22: גבר הורה יחיד ולו ילד אחד, בגיל 4 או 5, בחזקתו | L22: 5.25
K23: גבר החי בנפרד ומשלם מזונות בגין פעוט, בשנה שלאחר שנת הלידה ובשנה שבה מלאו לו שנתיים שאיננו בחזקתו | L23: 5.25
K24: אב החי בנפרד ולו ילד אחד בגיל שנה עד גיל 5 בחזקתו | L24: 5.25
K25: אשה הורה יחיד ולה ילד אחד בגיל 4 או 5 בחזקתה | L25: 5.75
K26: אשה החיה בנפרד ולה ילד אחד בגיל שנה עד גיל 5 בחזקתה | L26: 5.75
K27: אשה החיה בנפרד ומשלמת מזונות בגין פעוט, בשנה שלאחר שנת הלידה ובשנה שבה מלאו לו שנתיים, שלא בחזקתה | L27: 5.75

Sheet מס על הקיצבה+פיצויים+היוון (hidden)
K5: שווי נקודת זיכוי | L5: ='נתונים ותקרות'!$B$6 -> 218
B7: שיעור מס | C7: הכנסה חודשית | D7: סכום במדרגה | E7: סכום מצטבר | K7: רווק | L7: 2.25
A8: 1 | B8: 0.1 | C8: ='נתונים ותקרות'!B17 -> 0 | D8: 0 | E8: 0 | K8: נשוי ללא ילדים | L8: =L7 -> 2.25
A9: 2 | B9: 0.14 | C9: ='נתונים ותקרות'!B18 -> 6290 | D9: =B8*C9 -> 629 | E9: =E8+D9 -> 629 | K9: אלמן/גרוש ללא ילדים | L9: =L8 -> 2.25
A10: 3 | B10: 0.2 | C10: ='נתונים ותקרות'!B19 -> 9030 | D10: =(C10-C9)*B9 -> 383.6 | E10: =E9+D10 -> 1012.6 | K10: נשוי בן 70 ומעלה שבת זוגו אינה עובדת | L10: 3.25
A11: 4 | B11: 0.31 | C11: ='נתונים ותקרות'!B20 -> 14490 | D11: =(C11-C10)*B10 -> 1092 | E11: =E10+D11 -> 2104.6 | K11: נשואה בת 70 ומעלה שבן זוגה אינו עובד | L11: 3.75
A12: 5 | B12: 0.35 | C12: ='נתונים ותקרות'!B21 -> 20140 | D12: 1751.5 | E12: 3856.1 | K12: רווקה | L12: 3.25
A13: 6 | B13: 0.47 | C13: ='נתונים ותקרות'!B22 -> 41910 | D13: 7619.5 | E13: 11475.6 | K13: נשואה ללא ילדים | L13: 3.25
A14: 7 | B14: 0.5 | C14: ='נתונים ותקרות'!B23 -> 53970 | D14: 5668.2 | E14: 17143.8 | K14: אלמנה/גרושה ללא ילדים | L14: 3.25
K15: גבר הורה יחיד ולו ילד בוגר בחזקתו | L15: 4.25
A16: הכנסה | C16: מס מצטבר עד המדרגה הקודמת | D16: מס במדרגה | E16: מס מחושב לפני נקודות זיכוי | K16: אב החי הנפרד ולו יילוד או ילד בוגר בחזקתו | L16: 4.25
A17: ='מס על הקיצבה 2'!B10 -> 27870.68798 | C17: =SUMIF(C8:C14,"<"&A17,D8:D14) -> 3856.1 | D17: =(A17-LOOKUP(A17,C8:C14))*LOOKUP(A17,C8:C14,B8:B14) -> 2705.740791 | E17: =D17+C17 -> 6561.840791 | K17: נערה בגיל 16-18 | L17: 4.25
A18: מספר נקודות זיכוי | B18: ='חישוב פטור בגיל פרישה'!J21 -> 2.25 | E18: =B18*$L$5*-1 -> -490.5 | K18: אשה נשואה ולה ילד בגיל 6-17 | L18: 4.25
C19: סה"כ מס | E19: =IF((E17+E18)>0,E17+E18,0) -> 6071.340791 | K19: אשה נשואה ולה ילד בשנה שלאחר לידתו ועד השנה בה מלאו לו 5 | L19: 4.75
K20: גבר הורה יחיד ולו יילוד בחזקתו | L20: 4.75
K21: אשה הורה יחיד ולה יילוד בחזקתה | L21: 5.25
K22: גבר הורה יחיד ולו ילד אחד, בגיל 4 או 5, בחזקתו | L22: 5.25
K23: גבר החי בנפרד ומשלם מזונות בגין פעוט, בשנה שלאחר שנת הלידה ובשנה שבה מלאו לו שנתיים שאיננו בחזקתו | L23: 5.25
K24: אב החי בנפרד ולו ילד אחד בגיל שנה עד גיל 5 בחזקתו | L24: 5.25
K25: אשה הורה יחיד ולה ילד אחד בגיל 4 או 5 בחזקתה | L25: 5.75
K26: אשה החיה בנפרד ולה ילד אחד בגיל שנה עד גיל 5 בחזקתה | L26: 5.75
K27: אשה החיה בנפרד ומשלמת מזונות בגין פעוט, בשנה שלאחר שנת הלידה ובשנה שבה מלאו לו שנתיים, שלא בחזקתה | L27: 5.75
